fUST/lending_fUST_20250901
["ID","MTS","AMOUNT","RATE_DAILY","PERIOD"]
[382719555,1756719048357,-620.08695432,0.00014246,2]
[382719556,1756719048367,-683.92,0.00014246,2]
[382719557,1756719048381,-1217.44,0.00014246,2]
[382719558,1756719048392,-480.0,0.00014246,2]
[382719559,1756719048403,-738.59,0.00014246,2]
[382719560,1756719048415,-634.62,0.00014246,2]
[382719561,1756719048428,-480.0,0.00014246,2]
[382719562,1756719048439,-480.0,0.00014246,2]
[382719563,1756719048451,-492.5,0.00014246,2]
[382719564,1756719048463,-481.71634681,0.00014246,2]
[382719565,1756719048475,-480.0,0.00014246,2]
[382719566,1756719048487,-480.0,0.00014246,2]
[382719567,1756719048497,-480.0,0.00014246,2]
[382719568,1756719048507,-480.0,0.00014246,2]
[382719570,1756719048519,-480.0,0.00014246,2]
[382719572,1756719048529,-480.0,0.00014246,2]
[382719573,1756719048540,-480.0,0.00014246,2]
[382719574,1756719048552,-480.0,0.00014246,2]
[382719575,1756719048563,-1991.25,0.00014246,2]
[382719576,1756719048574,-480.0,0.00014246,2]
[382719577,1756719048584,-707.25,0.00014246,2]
[382719578,1756719048595,-480.0,0.00014246,2]
[382719579,1756719048606,-1376.3,0.00014246,2]
[382719580,1756719048618,-480.0,0.00014246,2]
[382719581,1756719048629,-918.69,0.00014246,2]
[382719582,1756719048640,-480.0,0.00014246,2]
[382719583,1756719048652,-601.43,0.00014246,2]
[382719585,1756719048663,-480.0,0.00014246,2]
[382719588,1756719048674,-480.0,0.00014246,2]
[382719589,1756719048685,-973.19,0.00014246,2]
[382719590,1756719048696,-600.16,0.00014246,2]
[382719591,1756719048707,-480.0,0.00014246,2]
[382719592,1756719048718,-734.35,0.00014246,2]
[382719593,1756719048729,-480.0,0.00014246,2]
[382719594,1756719048739,-533.48,0.00014246,2]
[382719595,1756719048750,-713.84,0.00014246,2]
[382719596,1756719048761,-480.0,0.00014246,2]
[382719597,1756719048771,-480.0,0.00014246,2]
[382719598,1756719048782,-480.0,0.00014246,2]
[382719599,1756719048793,-480.0,0.00014246,2]
[382719600,1756719048804,-518.19,0.00014246,2]
[382719601,1756719048815,-480.0,0.00014246,2]
[382719602,1756719048826,-480.0,0.00014246,2]
[382719603,1756719048836,-480.0,0.00014246,2]
[382719604,1756719048847,-596.14,0.00014246,2]
[382719605,1756719048858,-1044.84,0.00014246,2]
[382719606,1756719048868,-480.0,0.00014246,2]
[382719607,1756719048879,-694.38,0.00014246,2]
[382719608,1756719048889,-480.0,0.00014246,2]
[382719609,1756719048900,-480.0,0.00014246,2]
[382719610,1756719048911,-560.16,0.00014246,2]
[382719611,1756719048922,-480.0,0.00014246,2]
[382719612,1756719048933,-480.0,0.00014246,2]
[382719613,1756719048944,-480.0,0.00014246,2]
[382719614,1756719048954,-686.66,0.00014246,2]
[382719615,1756719048965,-480.0,0.00014246,2]
[382719616,1756719048976,-732.75,0.00014246,2]
[382719617,1756719048987,-1212.2,0.00014246,2]
[382719618,1756719048998,-1020.68,0.00014246,2]
[382719619,1756719049009,-480.0,0.00014246,2]
[382719620,1756719049019,-480.0,0.00014246,2]
[382719621,1756719049030,-527.63,0.00014246,2]
[382719622,1756719049041,-3976.44,0.00014246,2]
[382719623,1756719049052,-489.14,0.00014246,2]
[382719624,1756719049062,-460.19,0.00014246,2]
[382719625,1756719049073,-526.29,0.00014246,2]
[382719626,1756719049083,-480.0,0.00014246,2]
[382719627,1756719049094,-244.92250846,0.00014246,2]
[382719628,1756719049105,-986.57,0.00014246,2]
[382719629,1756719049115,-480.0,0.00014246,2]
[382719630,1756719049125,-480.0,0.00014246,2]
[382719631,1756719049136,-1543.56,0.00014246,2]
[382719632,1756719049146,-480.0,0.00014246,2]
[382719633,1756719049157,-544.9,0.00014246,2]
[382719634,1756719049167,-480.0,0.00014246,2]
[382719635,1756719049178,-480.0,0.00014246,2]
[382719636,1756719049190,-480.0,0.00014246,2]
[382719637,1756719049200,-480.0,0.00014246,2]
[382719638,1756719049211,-769.17,0.00014246,2]
[382719639,1756719049222,-480.0,0.00014246,2]
[382719640,1756719049233,-480.0,0.00014246,2]
[382719641,1756719049244,-627.97,0.00014246,2]
[382719642,1756719049255,-1575.39,0.00014246,2]
[382719643,1756719049266,-480.0,0.00014246,2]
[382719644,1756719049278,-633.94,0.00014246,2]
[382719645,1756719049288,-482.62361852,0.00014246,2]
[382719646,1756719049300,-527.50644784,0.00014246,2]
[382719647,1756719049310,-480.0,0.00014246,2]
[382719648,1756719049321,-480.0,0.00014246,2]
[382719649,1756719049332,-480.0,0.00014246,2]
[382719650,1756719049342,-480.0,0.00014246,2]
[382719651,1756719049352,-480.0,0.00014246,2]
[382719652,1756719049363,-480.0,0.00014246,2]
[382719653,1756719049373,-4284.25,0.00014246,2]
[382719654,1756719049386,-480.0,0.00014246,2]
[382719655,1756719049633,-631.99,0.00014246,2]
[382719656,1756719049647,-480.0,0.00014246,2]
[382719657,1756719049657,-480.0,0.00014246,2]
[382719658,1756719049666,-480.0,0.00014246,2]
[382719659,1756719049677,-480.0,0.00014246,2]
[382719660,1756719049686,-480.0,0.00014246,2]
[382719661,1756719049696,-480.0,0.00014246,2]
[382719662,1756719049705,-480.0,0.00014246,2]
[382719663,1756719049714,-646.38,0.00014246,2]
[382719664,1756719049723,-480.0,0.00014246,2]
[382719665,1756719049732,-737.42,0.00014246,2]
[382719666,1756719049741,-840.99,0.00014246,2]
[382719667,1756719049751,-480.0,0.00014246,2]
[382719668,1756719049760,-792.58,0.00014246,2]
[382719669,1756719049769,-480.0,0.00014246,2]
[382719670,1756719049778,-783.57,0.00014246,2]
[382719671,1756719049787,-1349.08,0.00014246,2]
[382719672,1756719049796,-480.0,0.00014246,2]
[382719673,1756719049805,-1226.67,0.00014246,2]
[382719674,1756719049815,-864.08,0.00014246,2]
[382719675,1756719049823,-480.0,0.00014246,2]
[382719676,1756719049832,-480.0,0.00014246,2]
[382719677,1756719049842,-480.0,0.00014246,2]
[382719678,1756719049851,-2568.62,0.00014246,2]
[382719679,1756719049861,-605.01,0.00014246,2]
[382719680,1756719049870,-610.08,0.00014246,2]
[382719681,1756719049880,-286.71208656,0.00014246,2]
[382719682,1756719049889,-480.0,0.00014246,2]
[382719683,1756719049898,-736.79,0.00014246,2]
[382719684,1756719049908,-2842.52,0.00014246,2]
[382719685,1756719049918,-480.0,0.00014246,2]
[382719686,1756719049927,-480.0,0.00014246,2]
[382719687,1756719049936,-634.56,0.00014246,2]
[382719688,1756719049945,-723.45,0.00014246,2]
[382719689,1756719049954,-480.0,0.00014246,2]
[382719690,1756719049963,-480.0,0.00014246,2]
[382719691,1756719049972,-480.0,0.00014246,2]
[382719692,1756719049981,-521.66,0.00014246,2]
[382719693,1756719049990,-1105.94,0.00014246,2]
[382719694,1756719049999,-480.0,0.00014246,2]
[382719695,1756719050008,-480.0,0.00014246,2]
[382719696,1756719050017,-480.0,0.00014246,2]
[382719697,1756719050027,-540.1,0.00014246,2]
[382719698,1756719050036,-480.0,0.00014246,2]
[382719699,1756719050045,-1151.51,0.00014246,2]
[382719700,1756719050054,-480.0,0.00014246,2]
[382719701,1756719050064,-480.0,0.00014246,2]
[382719702,1756719050073,-480.0,0.00014246,2]
[382719703,1756719050082,-480.0,0.00014246,2]
[382719704,1756719050092,-163.117839,0.00014246,2]
[382719705,1756719050101,-608.45,0.00014246,2]
[382719706,1756719050110,-151.0,0.00014246,2]
[382719707,1756719050119,-559.88,0.00014246,2]
[382719708,1756719050128,-626.38,0.00014246,2]
[382719709,1756719050138,-457.995468,0.00014246,2]
[382719710,1756719050147,-460.29079371,0.00014246,2]
[382719711,1756719050351,-482.34920629,0.00014246,2]
[382719712,1756719050360,-457.995468,0.00014246,2]
[382719713,1756719050370,-151.0,0.00014246,2]
[382719714,1756719050381,-457.995468,0.00014246,2]
[382719715,1756719050391,-177.19525364,0.00014246,2]
[382719717,1756719050793,-429.42624312,0.00014246,2]
[382719718,1756719051548,-0.0564922,0.00014246,2]
[382719719,1756719051570,-359.52201104,0.00014246,2]
[382719720,1756719051579,-1049.03317981,0.00014246,2]
[382719721,1756719051590,-270.68659449,0.00014246,2]
[382719722,1756719051927,-480.0,0.00013698,2]
[382719723,1756719051937,-177.18964224,0.00013972,2]
[382719724,1756719051948,-302.81035776,0.00013972,2]
[382719725,1756719051957,-2896.0102257,0.00014246,2]
[382719726,1756719051967,-552.86,0.00014246,2]
[382719727,1756719051976,-713.55,0.00014246,2]
[382719728,1756719051985,-457.995468,0.00014246,2]
[382719729,1756719051994,-560.0,0.00014273,2]
[382719730,1756719052003,-151.0,0.00014277,2]
[382719731,1756719052013,-277.2116924,0.00014277,2]
[382719732,1756719052022,-151.0,0.00014277,2]
[382719733,1756719052031,-151.0,0.00014277,2]
[382719734,1756719052041,-295.16553519,0.00014277,2]
[382719735,1756719052053,-151.0,0.00014277,2]
[382719736,1756719052062,-151.0,0.00014277,2]
[382719737,1756719052071,-151.0,0.00014277,2]
[382719738,1756719052081,-1102.0,0.00014277,2]
[382719739,1756719052090,-151.0,0.00014277,2]
[382719740,1756719052099,-500.0,0.00014277,2]
[382719741,1756719052108,-151.0,0.000143,2]
[382719742,1756719052117,-560.0,0.00014303,2]
[382719743,1756719052126,-500.0,0.00014339,2]
[382719744,1756719052136,-500.0,0.00014339,2]
[382719745,1756719052145,-263.81235801,0.00014339,2]
[382719746,1756719052173,-237.73824645,0.00014339,2]
[382719747,1756719052182,-500.0,0.00014339,2]
[382719748,1756719052191,-500.0,0.00014339,2]
[382719749,1756719052201,-345.85901749,0.00014339,2]
[382719750,1756719052210,-1091.82562387,0.0001442,2]
[382719751,1756719052726,-465.79660852,0.00014246,2]
[382719752,1756719052737,-14.20339148,0.00014246,2]
[382719753,1756719052746,-152.32065002,0.0001442,2]
[382719754,1756719052756,-313.245,0.00014424,2]
[382719755,1756719052765,-151.0,0.00014482,2]
[382719756,1756719052774,-560.0,0.00014482,2]
[382719757,1756719052783,-560.0,0.00014506,2]
[382719758,1756719052793,-560.0,0.00014519,2]
[382719759,1756719052803,-360.27990167,0.0001452,2]
[382719760,1756719052812,-480.0,0.0001452,2]
[382719761,1756719052822,-344.69663123,0.0001452,2]
[382719762,1756719052832,-480.0,0.0001452,2]
[382719763,1756719052841,-212.64846288,0.0001452,2]
[382719764,1756719052851,-795.18,0.0001452,2]
[382719765,1756719052860,-480.0,0.0001452,2]
[382719766,1756719052869,-480.0,0.0001452,2]
[382719767,1756719052878,-480.0,0.0001452,2]
[382719768,1756719052887,-480.0,0.0001452,2]
[382719769,1756719052897,-480.0,0.0001452,2]
[382719770,1756719052906,-833.27,0.0001452,2]
[382719771,1756719052915,-480.0,0.0001452,2]
[382719772,1756719052925,-480.0,0.0001452,2]
[382719773,1756719052934,-480.0,0.0001452,2]
[382719774,1756719052944,-480.0,0.0001452,2]
[382719775,1756719052953,-480.0,0.0001452,2]
[382719776,1756719052962,-480.0,0.0001452,2]
[382719777,1756719052971,-480.0,0.0001452,2]
[382719778,1756719052981,-480.0,0.0001452,2]
[382719779,1756719052990,-480.0,0.0001452,2]
[382719780,1756719052999,-480.0,0.0001452,2]
[382719781,1756719053009,-480.0,0.0001452,2]
[382719782,1756719053018,-480.0,0.0001452,2]
[382719783,1756719053028,-480.0,0.0001452,2]
[382719784,1756719053037,-480.0,0.0001452,2]
[382719785,1756719053047,-480.0,0.0001452,2]
[382719786,1756719053057,-480.0,0.0001452,2]
[382719787,1756719053067,-789.77,0.0001452,2]
[382719788,1756719053076,-471.40083625,0.0001452,2]
[382719789,1756719053086,-480.0,0.0001452,2]
[382719790,1756719053095,-480.0,0.0001452,2]
[382719791,1756719053105,-480.0,0.0001452,2]
[382719792,1756719053114,-480.0,0.0001452,2]
[382719793,1756719053123,-858.29,0.0001452,2]
[382719794,1756719053132,-879.79,0.0001452,2]
[382719795,1756719053142,-512.29698968,0.0001452,2]
[382719796,1756719053151,-480.0,0.0001452,2]
[382719797,1756719053160,-480.0,0.0001452,2]
[382719798,1756719053170,-480.0,0.0001452,2]
[382719799,1756719053180,-711.9,0.0001452,2]
[382719800,1756719053190,-480.0,0.0001452,2]
[382719801,1756719053199,-562.4816665,0.0001452,2]
[382719802,1756719053208,-480.0,0.0001452,2]
[382719803,1756719053218,-568.51,0.0001452,2]
[382719804,1756719053227,-763.81,0.0001452,2]
[382719805,1756719053237,-480.0,0.0001452,2]
[382719806,1756719053246,-480.0,0.0001452,2]
[382719807,1756719053256,-480.0,0.0001452,2]
[382719808,1756719053265,-613.69,0.0001452,2]
[382719809,1756719053275,-480.0,0.0001452,2]
[382719810,1756719053284,-700.7,0.0001452,2]
[382719811,1756719053294,-171.27758612,0.0001452,2]
[382719812,1756719053304,-328.4775082,0.0001452,2]
[382719813,1756719053314,-480.0,0.0001452,2]
[382719814,1756719053323,-764.0,0.0001452,2]
[382719815,1756719053333,-730.48,0.0001452,2]
[382719816,1756719053342,-480.0,0.0001452,2]
[382719817,1756719053352,-480.0,0.0001452,2]
[382719818,1756719053361,-480.0,0.0001452,2]
[382719819,1756719053371,-480.0,0.0001452,2]
[382719820,1756719053380,-480.0,0.0001452,2]
[382719821,1756719053391,-480.0,0.0001452,2]
[382719822,1756719053401,-480.0,0.0001452,2]
[382719823,1756719053410,-480.0,0.0001452,2]
[382719824,1756719053420,-480.0,0.0001452,2]
[382719825,1756719053430,-480.0,0.0001452,2]
[382719826,1756719053439,-480.0,0.0001452,2]
[382719827,1756719053449,-480.0,0.0001452,2]
[382719828,1756719053458,-514.67,0.0001452,2]
[382719829,1756719053468,-373.48767659,0.0001452,2]
[382719830,1756719053478,-480.0,0.0001452,2]
[382719831,1756719053487,-480.0,0.0001452,2]
[382719832,1756719053496,-151.0,0.0001452,2]
[382719833,1756719053506,-480.0,0.0001452,2]
[382719834,1756719053515,-734.2,0.0001452,2]
[382719835,1756719053524,-480.0,0.0001452,2]
[382719836,1756719053534,-483.77,0.0001452,2]
[382719837,1756719053544,-798.99,0.0001452,2]
[382719838,1756719053553,-480.0,0.0001452,2]
[382719839,1756719053563,-480.0,0.0001452,2]
[382719840,1756719053572,-480.0,0.0001452,2]
[382719841,1756719053582,-480.0,0.0001452,2]
[382719842,1756719053591,-480.0,0.0001452,2]
[382719843,1756719053601,-480.0,0.0001452,2]
[382719844,1756719053610,-480.0,0.0001452,2]
[382719845,1756719053619,-486.18,0.0001452,2]
[382719846,1756719053629,-480.0,0.0001452,2]
[382719847,1756719053639,-151.0,0.0001452,2]
[382719848,1756719053648,-765.0,0.0001452,2]
[382719849,1756719053658,-480.0,0.0001452,2]
[382719850,1756719053667,-480.0,0.0001452,2]
[382719851,1756719053676,-670.38,0.0001452,2]
[382719852,1756719053686,-731.06,0.0001452,2]
[382719853,1756719053696,-480.0,0.0001452,2]
[382719854,1756719053705,-736.62,0.0001452,2]
[382719855,1756719053715,-569.73,0.0001452,2]
[382719856,1756719053724,-480.0,0.0001452,2]
[382719857,1756719053733,-480.0,0.0001452,2]
[382719858,1756719053743,-480.0,0.0001452,2]
[382719859,1756719053752,-969.25,0.0001452,2]
[382719860,1756719053761,-480.0,0.0001452,2]
[382719861,1756719053771,-647.48,0.0001452,2]
[382719862,1756719053780,-762.24,0.0001452,2]
[382719863,1756719053789,-480.0,0.0001452,2]
[382719864,1756719053799,-480.0,0.0001452,2]
[382719865,1756719053808,-480.0,0.0001452,2]
[382719866,1756719053818,-998.76,0.0001452,2]
[382719867,1756719053827,-480.0,0.0001452,2]
[382719868,1756719053837,-480.0,0.0001452,2]
[382719869,1756719053846,-480.0,0.0001452,2]
[382719870,1756719053855,-480.0,0.0001452,2]
[382719871,1756719053865,-480.0,0.0001452,2]
[382719872,1756719053875,-480.0,0.0001452,2]
[382719873,1756719053884,-480.0,0.0001452,2]
[382719874,1756719053893,-683.92,0.0001452,2]
[382719875,1756719053903,-1217.44,0.0001452,2]
[382719876,1756719053913,-480.0,0.0001452,2]
[382719877,1756719053922,-738.59,0.0001452,2]
[382719878,1756719053933,-634.62,0.0001452,2]
[382719879,1756719053942,-480.0,0.0001452,2]
[382719880,1756719053952,-492.5,0.0001452,2]
[382719881,1756719053961,-480.0,0.0001452,2]
[382719882,1756719053971,-480.0,0.0001452,2]
[382719883,1756719053981,-480.0,0.0001452,2]
[382719884,1756719053990,-480.0,0.0001452,2]
[382719885,1756719053999,-480.0,0.0001452,2]
[382719886,1756719054009,-597.09570547,0.0001452,2]
[382719887,1756719054018,-480.0,0.0001452,2]
[382719888,1756719054027,-1991.25,0.0001452,2]
[382719889,1756719054037,-480.0,0.0001452,2]
[382719890,1756719054046,-707.25,0.0001452,2]
[382719891,1756719054055,-480.0,0.0001452,2]
[382719892,1756719054064,-1376.3,0.0001452,2]
[382719893,1756719054074,-179.436393,0.0001452,2]
[382719894,1756719054083,-480.0,0.0001452,2]
[382719895,1756719054092,-918.69,0.0001452,2]
[382719896,1756719054102,-480.0,0.0001452,2]
[382719897,1756719054111,-601.43,0.0001452,2]
[382719898,1756719054120,-480.0,0.0001452,2]
[382719899,1756719054129,-480.0,0.0001452,2]
[382719900,1756719054139,-973.19,0.0001452,2]
[382719901,1756719054148,-600.16,0.0001452,2]
[382719902,1756719054158,-480.0,0.0001452,2]
[382719903,1756719054168,-734.35,0.0001452,2]
[382719904,1756719054179,-480.0,0.0001452,2]
[382719905,1756719054189,-533.48,0.0001452,2]
[382719906,1756719054199,-713.84,0.0001452,2]
[382719907,1756719054208,-480.0,0.0001452,2]
[382719908,1756719054217,-480.0,0.0001452,2]
[382719909,1756719054227,-480.0,0.0001452,2]
[382719910,1756719054236,-480.0,0.0001452,2]
[382719911,1756719054245,-518.19,0.0001452,2]
[382719912,1756719054255,-151.0,0.0001452,2]
[382719913,1756719054265,-569.94630896,0.0001452,2]
[382719914,1756719054279,-480.0,0.0001452,2]
[382719915,1756719054288,-596.14,0.0001452,2]
[382719916,1756719054302,-1044.84,0.0001452,2]
[382719917,1756719054311,-480.0,0.0001452,2]
[382719918,1756719054321,-694.38,0.0001452,2]
[382719919,1756719054330,-480.0,0.0001452,2]
[382719920,1756719054339,-480.0,0.0001452,2]
[382719921,1756719054349,-560.16,0.0001452,2]
[382719922,1756719054358,-294.21253812,0.0001452,2]
[382719923,1756719054367,-480.0,0.0001452,2]
[382719924,1756719054377,-686.66,0.0001452,2]
[382719925,1756719054391,-480.0,0.0001452,2]
[382719926,1756719054400,-732.75,0.0001452,2]
[382719927,1756719054410,-1212.2,0.0001452,2]
[382719928,1756719054419,-1020.68,0.0001452,2]
[382719929,1756719054429,-251.99158348,0.0001452,2]
[382719930,1756719054438,-480.0,0.0001452,2]
[382719931,1756719054448,-527.63,0.0001452,2]
[382719932,1756719054458,-3976.44,0.0001452,2]
[382719933,1756719054467,-489.14,0.0001452,2]
[382719934,1756719054477,-526.29,0.0001452,2]
[382719935,1756719054487,-119.31670146,0.0001452,2]
[382719936,1756719054502,-360.68329854,0.0001452,2]
[382719937,1756719054511,-650.95381152,0.0001452,2]
[382719938,1756719054524,-335.61618848,0.0001452,2]
[382719939,1756719054533,-176.00584656,0.0001452,2]
[382719940,1756719054544,-303.99415344,0.0001452,2]
[382719941,1756719054554,-480.0,0.0001452,2]
[382719942,1756719054563,-1543.56,0.0001452,2]
[382719943,1756719054572,-480.0,0.0001452,2]
[382719944,1756719054581,-544.9,0.0001452,2]
[382719945,1756719054591,-480.0,0.0001452,2]
[382719946,1756719054600,-480.0,0.0001452,2]
[382719947,1756719054609,-480.0,0.0001452,2]
[382719948,1756719054619,-480.0,0.0001452,2]
[382719949,1756719054628,-769.17,0.0001452,2]
[382719950,1756719054637,-480.0,0.0001452,2]
[382719951,1756719054647,-480.0,0.0001452,2]
[382719952,1756719054656,-627.97,0.0001452,2]
[382719953,1756719054665,-1575.39,0.0001452,2]
[382719954,1756719054675,-480.0,0.0001452,2]
[382719955,1756719054684,-633.94,0.0001452,2]
[382719956,1756719054693,-480.0,0.0001452,2]
[382719957,1756719054703,-480.0,0.0001452,2]
[382719958,1756719054712,-480.0,0.0001452,2]
[382719959,1756719054721,-480.0,0.0001452,2]
[382719960,1756719054731,-480.0,0.0001452,2]
[382719961,1756719054740,-480.0,0.0001452,2]
[382719962,1756719054749,-4284.25,0.0001452,2]
[382719963,1756719054758,-480.0,0.0001452,2]
[382719964,1756719054767,-631.99,0.0001452,2]
[382719965,1756719054777,-480.0,0.0001452,2]
[382719966,1756719054787,-480.0,0.0001452,2]
[382719967,1756719054796,-480.0,0.0001452,2]
[382719968,1756719054805,-480.0,0.0001452,2]
[382719969,1756719054814,-480.0,0.0001452,2]
[382719970,1756719054823,-480.0,0.0001452,2]
[382719971,1756719054832,-646.38,0.0001452,2]
[382719972,1756719054842,-480.0,0.0001452,2]
[382719973,1756719054851,-737.42,0.0001452,2]
[382719974,1756719054860,-840.99,0.0001452,2]
[382719975,1756719054870,-480.0,0.0001452,2]
[382719976,1756719054880,-792.58,0.0001452,2]
[382719977,1756719054890,-480.0,0.0001452,2]
[382719978,1756719054899,-783.57,0.0001452,2]
[382719979,1756719054908,-1349.08,0.0001452,2]
[382719980,1756719054918,-480.0,0.0001452,2]
[382719981,1756719054927,-1226.67,0.0001452,2]
[382719982,1756719054937,-864.08,0.0001452,2]
[382719983,1756719054946,-480.0,0.0001452,2]
[382719984,1756719054956,-480.0,0.0001452,2]
[382719985,1756719054965,-480.0,0.0001452,2]
[382719986,1756719054975,-2568.62,0.0001452,2]
[382719987,1756719054985,-605.01,0.0001452,2]
[382719988,1756719054995,-610.08,0.0001452,2]
[382719989,1756719055004,-480.0,0.0001452,2]
[382719990,1756719055014,-736.79,0.0001452,2]
[382719991,1756719055024,-2842.52,0.0001452,2]
[382719992,1756719055033,-480.0,0.0001452,2]
[382719993,1756719055043,-480.0,0.0001452,2]
[382719994,1756719055053,-634.56,0.0001452,2]
[382719995,1756719055062,-723.45,0.0001452,2]
[382719996,1756719055071,-480.0,0.0001452,2]
[382719997,1756719055081,-480.0,0.0001452,2]
[382719998,1756719055090,-480.0,0.0001452,2]
[382719999,1756719055142,-521.66,0.0001452,2]
[382720000,1756719055152,-1105.94,0.0001452,2]
[382720001,1756719055161,-480.0,0.0001452,2]
[382720002,1756719055171,-230.74040021,0.0001452,2]
[382720003,1756719055180,-480.0,0.0001452,2]
[382720004,1756719055189,-540.1,0.0001452,2]
[382720005,1756719055199,-480.0,0.0001452,2]
[382720006,1756719055208,-1151.51,0.0001452,2]
[382720007,1756719055217,-480.0,0.0001452,2]
[382720008,1756719055227,-480.0,0.0001452,2]
[382720009,1756719055236,-480.0,0.0001452,2]
[382720010,1756719055245,-480.0,0.0001452,2]
[382720011,1756719055254,-608.45,0.0001452,2]
[382720012,1756719055263,-559.88,0.0001452,2]
[382720013,1756719055272,-626.38,0.0001452,2]
[382720014,1756719055282,-942.64,0.0001452,2]
[382720015,1756719055291,-966.2,0.0001452,2]
[382720016,1756719055301,-4215.73,0.0001452,2]
[382720017,1756719055309,-552.86,0.0001452,2]
[382720018,1756719055319,-713.55,0.0001452,2]
[382720019,1756719055328,-151.0,0.00014551,2]
[382720020,1756719055337,-151.0,0.00014551,2]
[382720021,1756719055346,-151.0,0.00014551,2]
[382720022,1756719055355,-151.0,0.00014551,2]
[382720023,1756719055364,-1102.0,0.00014551,2]
[382720024,1756719055373,-151.0,0.00014551,2]
[382720025,1756719055385,-500.0,0.00014551,2]
[382720026,1756719055395,-560.0,0.00014621,2]
[382720027,1756719055404,-168.0,0.00014657,2]
[382720028,1756719055413,-260.0,0.0001469,2]
[382720029,1756719055422,-1000.0,0.00014706,2]
[382720030,1756719055432,-1000.0,0.00014706,2]
[382720031,1756719055442,-1000.0,0.00014706,2]
[382720032,1756719055451,-1000.0,0.00014737,2]
[382720033,1756719055460,-502.70008143,0.00014737,2]
[382720034,1756719055469,-1000.0,0.00014737,2]
[382720035,1756719055478,-1000.0,0.00014737,2]
[382720036,1756719055488,-1000.0,0.00014737,2]
[382720037,1756719055497,-823.0,0.00014737,2]
[382720038,1756719055506,-1000.0,0.00014762,2]
[382720039,1756719055515,-1000.0,0.00014762,2]
[382720040,1756719055524,-500.0,0.00014762,2]
[382720041,1756719055533,-262.32124587,0.00014762,2]
[382720042,1756719055543,-732.61402608,0.00014768,2]
[382720043,1756719055552,-1003.82833155,0.00014768,2]
[382720044,1756719055561,-1500.0,0.00014768,2]
[382720045,1756719055570,-1500.0,0.00014768,2]
[382720046,1756719055579,-1500.0,0.00014768,2]
[382720047,1756719055588,-1500.0,0.00014768,2]
[382720048,1756719055598,-1500.0,0.00014768,2]
[382720049,1756719055607,-1500.0,0.00014768,2]
[382720050,1756719055617,-560.0,0.00014771,2]
[382720051,1756719055626,-1000.0,0.00014779,2]
[382720052,1756719055636,-480.0,0.00014794,2]
[382720053,1756719055645,-480.0,0.00014794,2]
[382720054,1756719055654,-795.18,0.00014794,2]
[382720055,1756719055663,-480.0,0.00014794,2]
[382720056,1756719055672,-480.0,0.00014794,2]
[382720057,1756719055682,-480.0,0.00014794,2]
[382720058,1756719055691,-480.0,0.00014794,2]
[382720059,1756719055701,-480.0,0.00014794,2]
[382720060,1756719055710,-833.27,0.00014794,2]